[Event "Titled Tuesday Blitz July 18 Early 2023"]
[White "Demidov, Mikhail"]
[Black "Tica, Sven"]
[WhiteFideId "4197143"]
[BlackFideId "14526948"]
[WhiteElo "2917"]
[BlackElo "2690"]
[Result "1-0"]
[Round "6"]
[TimeControl "180+2"]
[Date "2023.07.18"]
[WhiteClock "0:01:12"]
[BlackClock "0:01:11"]
[Board "19"]

1. Nf3 {[%clk 0:03:00]}  g6 {[%clk 0:02:58]} 2. h4 {[%clk 0:02:58]}  h6 {[%clk 0:02:50]} 3. e4 {[%clk 0:02:58]}  Bg7 {[%clk 0:02:50]} 4. d4 {[%clk 0:02:57]}  d6 {[%clk 0:02:50]} 5. c3 {[%clk 0:02:57]}  a6 {[%clk 0:02:50]} 6. Nbd2 {[%clk 0:02:55]}  b6 {[%clk 0:02:50]} 7. Bd3 {[%clk 0:02:53]}  Bb7 {[%clk 0:02:50]} 8. Nf1 {[%clk 0:02:53]}  Nd7 {[%clk 0:02:50]} 9. Ng3 {[%clk 0:02:54]}  e6 {[%clk 0:02:51]} 10. Bf4 {[%clk 0:02:50]}  Ne7 {[%clk 0:02:45]} 11. Qd2 {[%clk 0:02:50]}  Nf6 {[%clk 0:02:44]} 12. O-O-O {[%clk 0:02:34]}  Qd7 {[%clk 0:02:44]} 13. Kb1 {[%clk 0:02:34]}  d5 {[%clk 0:02:40]} 14. Rhe1 {[%clk 0:02:33]}  dxe4 {[%clk 0:02:40]} 15. Nxe4 {[%clk 0:02:23]}  Nxe4 {[%clk 0:02:39]} 16. Bxe4 {[%clk 0:02:24]}  Bxe4+ {[%clk 0:02:39]} 17. Rxe4 {[%clk 0:02:24]}  Nd5 {[%clk 0:02:28]} 18. Be5 {[%clk 0:02:22]}  O-O {[%clk 0:02:22]} 19. Bxg7 {[%clk 0:02:22]}  Kxg7 {[%clk 0:02:23]} 20. Ne5 {[%clk 0:02:20]}  Qe7 {[%clk 0:02:20]} 21. g3 {[%clk 0:02:11]}  f5 {[%clk 0:02:10]} 22. Re2 {[%clk 0:02:08]}  Nf6 {[%clk 0:02:08]} 23. Rde1 {[%clk 0:02:06]}  Rfe8 {[%clk 0:02:08]} 24. Nd3 {[%clk 0:01:58]}  Qd6 {[%clk 0:01:58]} 25. Nf4 {[%clk 0:01:49]}  Ne4 {[%clk 0:01:57]} 26. Qc2 {[%clk 0:01:41]}  e5 {[%clk 0:01:46]} 27. dxe5 {[%clk 0:01:38]}  Qc6 {[%clk 0:01:28]} 28. g4 {[%clk 0:01:21]}  Rad8 {[%clk 0:01:21]} 29. gxf5 {[%clk 0:01:20]}  gxf5 {[%clk 0:01:22]} 30. f3 {[%clk 0:01:18]}  Nc5 {[%clk 0:01:11]} 31. Qxf5 {[%clk 0:01:12]} 1-0


[Site "https://www.chess.com"]

[Event "Titled Tuesday Blitz July 18 Early 2023"]
[White "Aaditya Dhingra"]
[Black "Antipov, Mikhail Al."]
[WhiteFideId "25678191"]
[BlackFideId "4107012"]
[WhiteElo "2688"]
[BlackElo "2905"]
[Result "0-1"]
[Round "6"]
[TimeControl "180+2"]
[Date "2023.07.18"]
[WhiteClock "0:00:10"]
[BlackClock "0:00:04"]
[Board "20"]

1. d4 {[%clk 0:03:00]}  Nf6 {[%clk 0:02:59]} 2. Nf3 {[%clk 0:02:59]}  d5 {[%clk 0:02:59]} 3. Bf4 {[%clk 0:02:59]}  Nh5 {[%clk 0:03:00]} 4. Bc1 {[%clk 0:02:57]}  e6 {[%clk 0:02:59]} 5. c4 {[%clk 0:02:56]}  Be7 {[%clk 0:02:59]} 6. Nc3 {[%clk 0:02:57]}  O-O {[%clk 0:02:54]} 7. e4 {[%clk 0:02:47]}  dxe4 {[%clk 0:02:53]} 8. Nxe4 {[%clk 0:02:47]}  b6 {[%clk 0:02:53]} 9. Be2 {[%clk 0:02:45]}  Bb7 {[%clk 0:02:53]} 10. Ng3 {[%clk 0:02:46]}  Nf6 {[%clk 0:02:47]} 11. O-O {[%clk 0:02:45]}  c5 {[%clk 0:02:43]} 12. dxc5 {[%clk 0:02:44]}  bxc5 {[%clk 0:02:44]} 13. Qc2 {[%clk 0:02:43]}  Nc6 {[%clk 0:02:44]} 14. Rd1 {[%clk 0:02:43]}  Qb6 {[%clk 0:02:40]} 15. Be3 {[%clk 0:02:38]}  Ng4 {[%clk 0:02:32]} 16. Ng5 {[%clk 0:02:35]}  Bxg5 {[%clk 0:02:21]} 17. Bxg5 {[%clk 0:02:30]}  Nge5 {[%clk 0:02:22]} 18. Be3 {[%clk 0:02:11]}  Rad8 {[%clk 0:02:18]} 19. b3 {[%clk 0:01:48]}  f5 {[%clk 0:02:10]} 20. Rxd8 {[%clk 0:01:42]}  Nxd8 {[%clk 0:01:54]} 21. f4 {[%clk 0:01:38]}  Ng6 {[%clk 0:01:47]} 22. b4 {[%clk 0:01:37]}  Qc7 {[%clk 0:01:29]} 23. Bxc5 {[%clk 0:01:33]}  Re8 {[%clk 0:01:11]} 24. Nh5 {[%clk 0:01:30]}  Nxf4 {[%clk 0:01:05]} 25. Nxf4 {[%clk 0:01:29]}  Qxf4 {[%clk 0:01:05]} 26. Rf1 {[%clk 0:01:21]}  Qc7 {[%clk 0:00:59]} 27. Qc3 {[%clk 0:01:11]}  Nf7 {[%clk 0:00:54]} 28. Rd1 {[%clk 0:01:02]}  Ng5 {[%clk 0:00:48]} 29. Qe3 {[%clk 0:01:01]}  f4 {[%clk 0:00:39]} 30. Qd3 {[%clk 0:01:00]}  Qc6 {[%clk 0:00:32]} 31. Bf1 {[%clk 0:00:53]}  f3 {[%clk 0:00:18]} 32. h4 {[%clk 0:00:38]}  fxg2 {[%clk 0:00:13]} 33. Be2 {[%clk 0:00:38]}  Nf7 {[%clk 0:00:06]} 34. Qd7 {[%clk 0:00:36]}  Ne5 {[%clk 0:00:04]} 35. Qxc6 {[%clk 0:00:33]}  Bxc6 {[%clk 0:00:05]} 36. Kf2 {[%clk 0:00:29]}  Rc8 {[%clk 0:00:04]} 37. Bd4 {[%clk 0:00:23]}  Rf8+ {[%clk 0:00:04]} 38. Kg1 {[%clk 0:00:18]}  Nf3+ {[%clk 0:00:04]} 39. Bxf3 {[%clk 0:00:18]}  Bxf3 {[%clk 0:00:03]} 40. Re1 {[%clk 0:00:18]}  Rd8 {[%clk 0:00:03]} 41. Bxa7 {[%clk 0:00:17]}  Rd2 {[%clk 0:00:03]} 42. Bf2 {[%clk 0:00:17]}  Rxa2 {[%clk 0:00:02]} 43. b5 {[%clk 0:00:16]}  Rc2 {[%clk 0:00:02]} 44. c5 {[%clk 0:00:16]}  Kf7 {[%clk 0:00:02]} 45. c6 {[%clk 0:00:16]}  Bd5 {[%clk 0:00:03]} 46. Bg3 {[%clk 0:00:15]}  Rc3 {[%clk 0:00:02]} 47. c7 {[%clk 0:00:14]}  Bb7 {[%clk 0:00:03]} 48. Bd6 {[%clk 0:00:13]}  Rh3 {[%clk 0:00:02]} 49. b6 {[%clk 0:00:12]}  Rh1+ {[%clk 0:00:02]} 50. Kf2 {[%clk 0:00:12]}  Rxe1 {[%clk 0:00:03]} 51. Kxe1 {[%clk 0:00:10]}  g1=Q+ {[%clk 0:00:04]} 0-1


[Site "https://www.chess.com"]

[Event "Titled Tuesday Blitz July 18 Early 2023"]
[White "Bacrot, Etienne"]
[Black "Lamaze, Simon"]
[WhiteFideId "605506"]
[BlackFideId "36069264"]
[WhiteElo "2855"]
[BlackElo "2656"]
[Result "1-0"]
[Round "6"]
[TimeControl "180+2"]
[Date "2023.07.18"]
[WhiteClock "0:00:25"]
[BlackClock "0:00:00"]
[Board "23"]

1. e4 {[%clk 0:03:00]}  c5 {[%clk 0:02:54]} 2. Nf3 {[%clk 0:03:01]}  e6 {[%clk 0:02:47]} 3. b3 {[%clk 0:03:00]}  d6 {[%clk 0:02:47]} 4. Bb2 {[%clk 0:03:00]}  e5 {[%clk 0:02:47]} 5. Bc4 {[%clk 0:02:42]}  Nc6 {[%clk 0:02:46]} 6. O-O {[%clk 0:02:42]}  Be7 {[%clk 0:02:41]} 7. Nc3 {[%clk 0:02:37]}  Be6 {[%clk 0:02:40]} 8. Nd5 {[%clk 0:02:32]}  Nf6 {[%clk 0:02:37]} 9. Ng5 {[%clk 0:02:29]}  Qd7 {[%clk 0:01:33]} 10. Nxf6+ {[%clk 0:01:59]}  Bxf6 {[%clk 0:01:30]} 11. Nxe6 {[%clk 0:01:58]}  fxe6 {[%clk 0:01:30]} 12. Qg4 {[%clk 0:01:51]}  Ke7 {[%clk 0:01:20]} 13. f4 {[%clk 0:01:50]}  h5 {[%clk 0:01:01]} 14. Qg3 {[%clk 0:01:40]}  Nd4 {[%clk 0:00:46]} 15. Bxd4 {[%clk 0:01:28]}  cxd4 {[%clk 0:00:41]} 16. f5 {[%clk 0:01:12]}  exf5 {[%clk 0:00:41]} 17. Rxf5 {[%clk 0:01:11]}  Rh6 {[%clk 0:00:41]} 18. Raf1 {[%clk 0:01:10]}  Kd8 {[%clk 0:00:20]} 19. c3 {[%clk 0:00:59]}  dxc3 {[%clk 0:00:20]} 20. dxc3 {[%clk 0:00:55]}  Kc7 {[%clk 0:00:19]} 21. Bd5 {[%clk 0:00:55]}  Rf8 {[%clk 0:00:13]} 22. Qd3 {[%clk 0:00:54]}  a6 {[%clk 0:00:14]} 23. a4 {[%clk 0:00:53]}  Kb8 {[%clk 0:00:14]} 24. a5 {[%clk 0:00:38]}  Qc7 {[%clk 0:00:14]} 25. b4 {[%clk 0:00:38]}  Rc8 {[%clk 0:00:14]} 26. c4 {[%clk 0:00:37]}  Rg6 {[%clk 0:00:12]} 27. Rxh5 {[%clk 0:00:31]}  Bg5 {[%clk 0:00:11]} 28. g3 {[%clk 0:00:30]}  Bf6 {[%clk 0:00:08]} 29. Kg2 {[%clk 0:00:30]}  Qd7 {[%clk 0:00:00]} 30. Qf3 {[%clk 0:00:25]} 1-0


[Site "https://www.chess.com"]

[Event "Titled Tuesday Blitz July 18 Early 2023"]
[White "Ter-Sahakyan, Samvel"]
[Black "Ovchinnikov, Vsevolod"]
[WhiteFideId "13302531"]
[BlackFideId "24176842"]
[WhiteElo "2847"]
[BlackElo "2654"]
[Result "1-0"]
[Round "6"]
[TimeControl "180+2"]
[Date "2023.07.18"]
[WhiteClock "0:00:38"]
[BlackClock "0:00:02"]
[Board "24"]

1. d4 {[%clk 0:03:00]}  Nf6 {[%clk 0:02:59]} 2. c4 {[%clk 0:03:00]}  g6 {[%clk 0:02:59]} 3. Nc3 {[%clk 0:03:00]}  d5 {[%clk 0:02:59]} 4. Nf3 {[%clk 0:02:59]}  Bg7 {[%clk 0:02:59]} 5. Bg5 {[%clk 0:02:59]}  Ne4 {[%clk 0:02:58]} 6. Bf4 {[%clk 0:02:59]}  Nxc3 {[%clk 0:02:57]} 7. bxc3 {[%clk 0:02:58]}  dxc4 {[%clk 0:02:58]} 8. e3 {[%clk 0:02:56]}  Be6 {[%clk 0:02:57]} 9. h4 {[%clk 0:02:44]}  h6 {[%clk 0:02:34]} 10. Qb1 {[%clk 0:02:33]}  b6 {[%clk 0:02:31]} 11. h5 {[%clk 0:02:27]}  g5 {[%clk 0:02:24]} 12. Be5 {[%clk 0:02:27]}  Kf8 {[%clk 0:01:38]} 13. Bxg7+ {[%clk 0:01:59]}  Kxg7 {[%clk 0:01:38]} 14. Ne5 {[%clk 0:01:58]}  Nd7 {[%clk 0:01:17]} 15. Nxc4 {[%clk 0:01:51]}  c5 {[%clk 0:01:11]} 16. Be2 {[%clk 0:01:41]}  Rc8 {[%clk 0:01:08]} 17. Nd2 {[%clk 0:01:39]}  cxd4 {[%clk 0:01:02]} 18. cxd4 {[%clk 0:01:39]}  Nf6 {[%clk 0:00:59]} 19. O-O {[%clk 0:01:32]}  Qd6 {[%clk 0:00:21]} 20. Qb2 {[%clk 0:01:32]}  Rc7 {[%clk 0:00:20]} 21. e4 {[%clk 0:01:23]}  Qd8 {[%clk 0:00:04]} 22. d5 {[%clk 0:01:22]}  Bc8 {[%clk 0:00:04]} 23. Rac1 {[%clk 0:01:09]}  Bb7 {[%clk 0:00:03]} 24. Nf3 {[%clk 0:01:00]}  Rxc1 {[%clk 0:00:02]} 25. Rxc1 {[%clk 0:01:00]}  Qb8 {[%clk 0:00:02]} 26. Nd4 {[%clk 0:00:57]}  Rc8 {[%clk 0:00:02]} 27. Nf5+ {[%clk 0:00:57]}  Kh7 {[%clk 0:00:02]} 28. Rxc8 {[%clk 0:00:49]}  Bxc8 {[%clk 0:00:03]} 29. Nxe7 {[%clk 0:00:48]}  Nxe4 {[%clk 0:00:04]} 30. Qc2 {[%clk 0:00:42]}  f5 {[%clk 0:00:03]} 31. Qxc8 {[%clk 0:00:40]}  Qxc8 {[%clk 0:00:03]} 32. Nxc8 {[%clk 0:00:40]}  Kg7 {[%clk 0:00:03]} 33. d6 {[%clk 0:00:39]}  Nc5 {[%clk 0:00:03]} 34. Bb5 {[%clk 0:00:38]}  Kf6 {[%clk 0:00:02]} 35. d7 {[%clk 0:00:38]} 1-0


[Site "https://www.chess.com"]

[Event "Titled Tuesday Blitz July 18 Early 2023"]
[White "Harsh Suresh"]
[Black "Onufrienko, Vladislav"]
[WhiteFideId "45018464"]
[BlackFideId "13804332"]
[WhiteElo "2841"]
[BlackElo "2625"]
[Result "1-0"]
[Round "6"]
[TimeControl "180+2"]
[Date "2023.07.18"]
[WhiteClock "0:00:57"]
[BlackClock "0:00:00"]
[Board "25"]

1. e4 {[%clk 0:03:00]}  Nf6 {[%clk 0:02:58]} 2. e5 {[%clk 0:02:55]}  Nd5 {[%clk 0:02:58]} 3. c4 {[%clk 0:02:55]}  Nb6 {[%clk 0:02:58]} 4. d4 {[%clk 0:02:56]}  d6 {[%clk 0:02:58]} 5. f4 {[%clk 0:02:55]}  dxe5 {[%clk 0:02:58]} 6. fxe5 {[%clk 0:02:56]}  Nc6 {[%clk 0:02:59]} 7. Be3 {[%clk 0:02:56]}  Bf5 {[%clk 0:02:59]} 8. Nc3 {[%clk 0:02:52]}  e6 {[%clk 0:03:00]} 9. Nf3 {[%clk 0:02:50]}  f6 {[%clk 0:03:00]} 10. exf6 {[%clk 0:02:46]}  Qxf6 {[%clk 0:03:01]} 11. Be2 {[%clk 0:02:45]}  O-O-O {[%clk 0:03:01]} 12. Bg5 {[%clk 0:02:45]}  Rxd4 {[%clk 0:03:01]} 13. Bxf6 {[%clk 0:02:25]}  Rxd1+ {[%clk 0:03:00]} 14. Rxd1 {[%clk 0:02:25]}  gxf6 {[%clk 0:03:01]} 15. Nh4 {[%clk 0:02:14]}  Bg6 {[%clk 0:02:56]} 16. Nxg6 {[%clk 0:02:12]}  hxg6 {[%clk 0:02:56]} 17. O-O {[%clk 0:02:12]}  Bc5+ {[%clk 0:02:53]} 18. Kh1 {[%clk 0:02:12]}  f5 {[%clk 0:02:50]} 19. b3 {[%clk 0:01:59]}  g5 {[%clk 0:02:36]} 20. g3 {[%clk 0:01:46]}  a6 {[%clk 0:01:45]} 21. Kg2 {[%clk 0:01:41]}  Nd4 {[%clk 0:01:37]} 22. Bd3 {[%clk 0:01:39]}  g4 {[%clk 0:01:01]} 23. Ne2 {[%clk 0:01:37]}  Nf3 {[%clk 0:00:52]} 24. h4 {[%clk 0:01:37]}  Rf8 {[%clk 0:00:28]} 25. Nf4 {[%clk 0:01:34]}  Nd4 {[%clk 0:00:12]} 26. Nxe6 {[%clk 0:01:15]}  Nxe6 {[%clk 0:00:10]} 27. Bxf5 {[%clk 0:01:15]}  Rxf5 {[%clk 0:00:09]} 28. Rxf5 {[%clk 0:01:16]}  Bd6 {[%clk 0:00:01]} 29. h5 {[%clk 0:01:12]}  Nd7 {[%clk 0:00:01]} 30. h6 {[%clk 0:01:10]}  Nef8 {[%clk 0:00:02]} 31. Rf7 {[%clk 0:01:02]}  Kd8 {[%clk 0:00:01]} 32. h7 {[%clk 0:00:59]}  Nxh7 {[%clk 0:00:01]} 33. Rxh7 {[%clk 0:00:59]}  Ne5 {[%clk 0:00:00]} 34. c5 {[%clk 0:00:57]} 1-0


[Site "https://www.chess.com"]

[Event "Titled Tuesday Blitz July 18 Early 2023"]
[White "Elsa167"]
[Black "Zaragatski, Ilja"]
[BlackFideId "4655192"]
[WhiteElo "2805"]
[BlackElo "2615"]
[Result "0-1"]
[Round "6"]
[TimeControl "180+2"]
[Date "2023.07.18"]
[WhiteClock "0:00:00"]
[BlackClock "0:00:15"]
[Board "26"]

1. d4 {[%clk 0:03:00]}  Nf6 {[%clk 0:02:59]} 2. c4 {[%clk 0:03:01]}  c5 {[%clk 0:02:58]} 3. d5 {[%clk 0:03:01]}  b5 {[%clk 0:02:58]} 4. cxb5 {[%clk 0:03:02]}  a6 {[%clk 0:02:58]} 5. bxa6 {[%clk 0:03:03]}  g6 {[%clk 0:02:58]} 6. Nc3 {[%clk 0:03:04]}  Bg7 {[%clk 0:02:57]} 7. e4 {[%clk 0:03:04]}  O-O {[%clk 0:02:46]} 8. a7 {[%clk 0:03:04]}  Rxa7 {[%clk 0:02:46]} 9. Nf3 {[%clk 0:03:05]}  d6 {[%clk 0:02:39]} 10. Be2 {[%clk 0:03:02]}  Ba6 {[%clk 0:02:39]} 11. O-O {[%clk 0:03:02]}  Qb6 {[%clk 0:02:37]} 12. Re1 {[%clk 0:03:00]}  Nbd7 {[%clk 0:02:37]} 13. a4 {[%clk 0:02:48]}  Rb8 {[%clk 0:02:35]} 14. Bb5 {[%clk 0:02:39]}  Ne8 {[%clk 0:02:26]} 15. Bxd7 {[%clk 0:02:19]}  Rxd7 {[%clk 0:02:25]} 16. e5 {[%clk 0:02:20]}  Rdb7 {[%clk 0:02:15]} 17. Rb1 {[%clk 0:01:59]}  Qb3 {[%clk 0:02:14]} 18. Qxb3 {[%clk 0:01:47]}  Rxb3 {[%clk 0:02:14]} 19. Bf4 {[%clk 0:01:47]}  Rxb2 {[%clk 0:01:43]} 20. Rxb2 {[%clk 0:01:37]}  Rxb2 {[%clk 0:01:44]} 21. Ne4 {[%clk 0:01:04]}  dxe5 {[%clk 0:01:20]} 22. Bxe5 {[%clk 0:00:48]}  Rc2 {[%clk 0:01:20]} 23. h3 {[%clk 0:00:40]}  Bxe5 {[%clk 0:01:16]} 24. Nxe5 {[%clk 0:00:40]}  Nd6 {[%clk 0:01:17]} 25. Nc6 {[%clk 0:00:31]}  Nf5 {[%clk 0:01:11]} 26. Rb1 {[%clk 0:00:15]}  Bd3 {[%clk 0:01:08]} 27. Ng3 {[%clk 0:00:10]}  Nxg3 {[%clk 0:01:08]} 28. fxg3 {[%clk 0:00:10]}  Be4 {[%clk 0:01:08]} 29. Re1 {[%clk 0:00:06]}  f5 {[%clk 0:01:01]} 30. Nxe7+ {[%clk 0:00:07]}  Kf7 {[%clk 0:01:01]} 31. d6 {[%clk 0:00:07]}  Ke6 {[%clk 0:00:58]} 32. Rd1 {[%clk 0:00:07]}  Rxg2+ {[%clk 0:00:51]} 33. Kf1 {[%clk 0:00:07]}  Kd7 {[%clk 0:00:52]} 34. Ng8 {[%clk 0:00:06]}  Rxg3 {[%clk 0:00:44]} 35. Nf6+ {[%clk 0:00:06]}  Kd8 {[%clk 0:00:45]} 36. Rd2 {[%clk 0:00:04]}  Rd3 {[%clk 0:00:43]} 37. Rxd3 {[%clk 0:00:04]}  Bxd3+ {[%clk 0:00:43]} 38. Kf2 {[%clk 0:00:05]}  h6 {[%clk 0:00:34]} 39. Ke3 {[%clk 0:00:05]}  Ba6 {[%clk 0:00:31]} 40. Kf4 {[%clk 0:00:04]}  c4 {[%clk 0:00:29]} 41. Ke3 {[%clk 0:00:01]}  g5 {[%clk 0:00:27]} 42. Kd4 {[%clk 0:00:01]}  f4 {[%clk 0:00:27]} 43. Ng4 {[%clk 0:00:01]}  h5 {[%clk 0:00:20]} 44. Nf2 {[%clk 0:00:01]}  Kd7 {[%clk 0:00:17]} 45. Kd5 {[%clk 0:00:01]}  c3 {[%clk 0:00:16]} 46. Ke5 {[%clk 0:00:00]}  c2 {[%clk 0:00:15]} 0-1


[Site "https://www.chess.com"]

[Event "Titled Tuesday Blitz July 18 Early 2023"]
[White "Bachmann, Axel"]
[Black "Pham, Khoi"]
[WhiteFideId "3700488"]
[BlackFideId "1054988"]
[WhiteElo "2805"]
[BlackElo "2607"]
[Result "1-0"]
[Round "6"]
[TimeControl "180+2"]
[Date "2023.07.18"]
[WhiteClock "0:02:32"]
[BlackClock "0:02:30"]
[Board "27"]

1. c4 {[%clk 0:03:00]}  g6 {[%clk 0:02:54]} 2. d4 {[%clk 0:02:59]}  Bg7 {[%clk 0:02:53]} 3. Nc3 {[%clk 0:03:00]}  d6 {[%clk 0:02:54]} 4. Nf3 {[%clk 0:03:00]}  Nf6 {[%clk 0:02:54]} 5. Bg5 {[%clk 0:03:00]}  O-O {[%clk 0:02:54]} 6. Qd2 {[%clk 0:03:00]}  c5 {[%clk 0:02:53]} 7. d5 {[%clk 0:02:58]}  Nbd7 {[%clk 0:02:52]} 8. e4 {[%clk 0:02:52]}  e6 {[%clk 0:02:51]} 9. dxe6 {[%clk 0:02:52]}  fxe6 {[%clk 0:02:49]} 10. Qxd6 {[%clk 0:02:50]}  Qe8 {[%clk 0:02:42]} 11. h3 {[%clk 0:02:38]}  b6 {[%clk 0:02:41]} 12. O-O-O {[%clk 0:02:32]}  Bb7 {[%clk 0:02:30]} 13. e5 {[%clk 0:02:32]} 1-0


[Site "https://www.chess.com"]

[Event "Titled Tuesday Blitz July 18 Early 2023"]
[White "Wagner, Dennis"]
[Black "Pinero Rodriguez, Carlos Jose"]
[WhiteFideId "24650684"]
[BlackFideId "3901726"]
[WhiteElo "2781"]
[BlackElo "2593"]
[Result "1-0"]
[Round "6"]
[TimeControl "180+2"]
[Date "2023.07.18"]
[WhiteClock "0:00:03"]
[BlackClock "0:00:00"]
[Board "28"]

1. d4 {[%clk 0:03:00]}  Nf6 {[%clk 0:02:59]} 2. Nf3 {[%clk 0:03:01]}  e6 {[%clk 0:02:59]} 3. c4 {[%clk 0:03:00]}  Bb4+ {[%clk 0:02:57]} 4. Bd2 {[%clk 0:03:00]}  Qe7 {[%clk 0:02:58]} 5. g3 {[%clk 0:03:00]}  O-O {[%clk 0:02:57]} 6. Bg2 {[%clk 0:03:00]}  Bxd2+ {[%clk 0:02:57]} 7. Qxd2 {[%clk 0:03:00]}  d6 {[%clk 0:02:58]} 8. Nc3 {[%clk 0:03:00]}  c6 {[%clk 0:02:58]} 9. O-O {[%clk 0:02:59]}  e5 {[%clk 0:02:58]} 10. Rad1 {[%clk 0:02:57]}  Nbd7 {[%clk 0:02:58]} 11. e4 {[%clk 0:02:51]}  Re8 {[%clk 0:02:55]} 12. Rfe1 {[%clk 0:02:51]}  b6 {[%clk 0:02:40]} 13. b3 {[%clk 0:02:40]}  Nf8 {[%clk 0:02:30]} 14. h3 {[%clk 0:02:16]}  Ng6 {[%clk 0:02:29]} 15. Kh2 {[%clk 0:02:15]}  Bb7 {[%clk 0:02:25]} 16. Re3 {[%clk 0:01:59]}  Rad8 {[%clk 0:02:25]} 17. Rd3 {[%clk 0:01:55]}  Rb8 {[%clk 0:01:50]} 18. dxe5 {[%clk 0:01:52]}  dxe5 {[%clk 0:01:50]} 19. Rd6 {[%clk 0:01:52]}  Rbc8 {[%clk 0:01:24]} 20. c5 {[%clk 0:01:22]}  bxc5 {[%clk 0:01:22]} 21. Qe3 {[%clk 0:01:21]}  Rc7 {[%clk 0:01:14]} 22. Qxc5 {[%clk 0:01:18]}  Bc8 {[%clk 0:01:15]} 23. Nd2 {[%clk 0:00:53]}  h6 {[%clk 0:01:13]} 24. Nc4 {[%clk 0:00:52]}  Nd7 {[%clk 0:01:06]} 25. Qe3 {[%clk 0:00:49]}  Nf6 {[%clk 0:00:58]} 26. Na5 {[%clk 0:00:41]}  Bd7 {[%clk 0:00:35]} 27. Qc5 {[%clk 0:00:36]}  Rec8 {[%clk 0:00:30]} 28. Na4 {[%clk 0:00:36]}  Be8 {[%clk 0:00:30]} 29. Bf3 {[%clk 0:00:31]}  Nd7 {[%clk 0:00:22]} 30. Qe3 {[%clk 0:00:22]}  Nf6 {[%clk 0:00:22]} 31. h4 {[%clk 0:00:20]}  h5 {[%clk 0:00:20]} 32. b4 {[%clk 0:00:14]}  Bd7 {[%clk 0:00:19]} 33. Nc5 {[%clk 0:00:14]}  Bg4 {[%clk 0:00:19]} 34. Nc4 {[%clk 0:00:09]}  Bxf3 {[%clk 0:00:17]} 35. Qxf3 {[%clk 0:00:10]}  Ng4+ {[%clk 0:00:18]} 36. Kg2 {[%clk 0:00:10]}  Nf8 {[%clk 0:00:17]} 37. Qf5 {[%clk 0:00:10]}  g6 {[%clk 0:00:17]} 38. Qg5 {[%clk 0:00:10]}  Qxg5 {[%clk 0:00:17]} 39. hxg5 {[%clk 0:00:11]}  Nh7 {[%clk 0:00:15]} 40. f3 {[%clk 0:00:11]}  Nxg5 {[%clk 0:00:14]} 41. fxg4 {[%clk 0:00:11]}  hxg4 {[%clk 0:00:15]} 42. Ne3 {[%clk 0:00:12]}  Rb8 {[%clk 0:00:11]} 43. a3 {[%clk 0:00:11]}  Re8 {[%clk 0:00:10]} 44. Nxg4 {[%clk 0:00:11]}  Kg7 {[%clk 0:00:10]} 45. Nf6 {[%clk 0:00:11]}  Ree7 {[%clk 0:00:07]} 46. Rh1 {[%clk 0:00:10]}  a5 {[%clk 0:00:05]} 47. bxa5 {[%clk 0:00:09]}  Ra7 {[%clk 0:00:05]} 48. a6 {[%clk 0:00:10]}  Ra8 {[%clk 0:00:06]} 49. Nfd7 {[%clk 0:00:10]}  f5 {[%clk 0:00:04]} 50. Nb6 {[%clk 0:00:10]}  Rf8 {[%clk 0:00:03]} 51. exf5 {[%clk 0:00:09]}  Rxf5 {[%clk 0:00:01]} 52. Nc8 {[%clk 0:00:08]}  Ref7 {[%clk 0:00:01]} 53. Nd3 {[%clk 0:00:06]}  Rf3 {[%clk 0:00:01]} 54. a7 {[%clk 0:00:05]}  Ne4 {[%clk 0:00:02]} 55. Rh3 {[%clk 0:00:04]}  Re3 {[%clk 0:00:01]} 56. Rxg6+ {[%clk 0:00:02]}  Kxg6 {[%clk 0:00:01]} 57. Rh6+ {[%clk 0:00:01]}  Kxh6 {[%clk 0:00:01]} 58. a8=Q {[%clk 0:00:02]}  Re2+ {[%clk 0:00:01]} 59. Kh3 {[%clk 0:00:03]}  Ng5+ {[%clk 0:00:02]} 60. Kg4 {[%clk 0:00:03]}  Re4+ {[%clk 0:00:02]} 61. Nf4 {[%clk 0:00:03]}  exf4 {[%clk 0:00:00]} 62. Qxc6+ {[%clk 0:00:03]} 1-0


[Site "https://www.chess.com"]

[Event "Titled Tuesday Blitz July 18 Early 2023"]
[White "Geivondian, Arman"]
[Black "Klimkowski, Jan"]
[WhiteFideId "24102032"]
[BlackFideId "21856222"]
[WhiteElo "2590"]
[BlackElo "2780"]
[Result "0-1"]
[Round "6"]
[TimeControl "180+2"]
[Date "2023.07.18"]
[WhiteClock "0:00:00"]
[BlackClock "0:00:28"]
[Board "29"]

1. e4 {[%clk 0:03:00]}  c5 {[%clk 0:02:59]} 2. Nf3 {[%clk 0:03:01]}  d6 {[%clk 0:03:00]} 3. Bb5+ {[%clk 0:03:01]}  Nd7 {[%clk 0:02:59]} 4. d4 {[%clk 0:03:00]}  cxd4 {[%clk 0:02:59]} 5. Qxd4 {[%clk 0:03:01]}  a6 {[%clk 0:03:00]} 6. Bxd7+ {[%clk 0:03:01]}  Bxd7 {[%clk 0:03:00]} 7. O-O {[%clk 0:03:01]}  Nf6 {[%clk 0:03:00]} 8. Bg5 {[%clk 0:03:00]}  e6 {[%clk 0:03:01]} 9. c4 {[%clk 0:03:00]}  Be7 {[%clk 0:02:56]} 10. Nc3 {[%clk 0:03:00]}  O-O {[%clk 0:02:55]} 11. Rad1 {[%clk 0:03:00]}  Bc6 {[%clk 0:02:51]} 12. Rfe1 {[%clk 0:02:59]}  Qa5 {[%clk 0:02:50]} 13. b3 {[%clk 0:02:55]}  Rfd8 {[%clk 0:02:46]} 14. Bc1 {[%clk 0:02:43]}  b5 {[%clk 0:02:41]} 15. Bb2 {[%clk 0:02:38]}  e5 {[%clk 0:02:16]} 16. Qd2 {[%clk 0:02:02]}  b4 {[%clk 0:01:57]} 17. Nd5 {[%clk 0:02:02]}  Bxd5 {[%clk 0:01:58]} 18. exd5 {[%clk 0:02:02]}  Qxa2 {[%clk 0:01:52]} 19. Qc2 {[%clk 0:02:01]}  Qa5 {[%clk 0:01:51]} 20. Ng5 {[%clk 0:02:01]}  h6 {[%clk 0:01:38]} 21. Ne4 {[%clk 0:02:01]}  Nxe4 {[%clk 0:01:36]} 22. Qxe4 {[%clk 0:02:02]}  Bf8 {[%clk 0:01:36]} 23. Rd3 {[%clk 0:02:00]}  Qc7 {[%clk 0:01:33]} 24. Rg3 {[%clk 0:01:58]}  Qd7 {[%clk 0:01:33]} 25. Qh4 {[%clk 0:01:52]}  Kh7 {[%clk 0:01:28]} 26. f4 {[%clk 0:01:52]}  exf4 {[%clk 0:01:24]} 27. Qxf4 {[%clk 0:01:50]}  Re8 {[%clk 0:01:24]} 28. Rf1 {[%clk 0:01:50]}  Re7 {[%clk 0:01:17]} 29. h4 {[%clk 0:01:44]}  Rae8 {[%clk 0:01:15]} 30. Rff3 {[%clk 0:01:43]}  Re1+ {[%clk 0:01:13]} 31. Kh2 {[%clk 0:01:39]}  R8e4 {[%clk 0:01:07]} 32. Qf5+ {[%clk 0:01:00]}  Qxf5 {[%clk 0:01:07]} 33. Rxf5 {[%clk 0:01:01]}  Rxh4+ {[%clk 0:01:07]} 34. Rh3 {[%clk 0:01:02]}  Rxh3+ {[%clk 0:01:08]} 35. Kxh3 {[%clk 0:01:03]}  f6 {[%clk 0:01:00]} 36. Rf3 {[%clk 0:01:00]}  Kg6 {[%clk 0:00:57]} 37. Bd4 {[%clk 0:01:00]}  Kf7 {[%clk 0:00:54]} 38. Bb6 {[%clk 0:00:59]}  Ra1 {[%clk 0:00:51]} 39. Bd4 {[%clk 0:00:58]}  Ra3 {[%clk 0:00:49]} 40. Kg4 {[%clk 0:00:52]}  a5 {[%clk 0:00:47]} 41. Bb2 {[%clk 0:00:47]}  Ra2 {[%clk 0:00:46]} 42. Bc1 {[%clk 0:00:47]}  Rc2 {[%clk 0:00:43]} 43. Be3 {[%clk 0:00:43]}  Rxg2+ {[%clk 0:00:43]} 44. Kf4 {[%clk 0:00:43]}  Ra2 {[%clk 0:00:41]} 45. Ke4 {[%clk 0:00:42]}  g6 {[%clk 0:00:40]} 46. Kd3 {[%clk 0:00:40]}  f5 {[%clk 0:00:38]} 47. Bc1 {[%clk 0:00:34]}  a4 {[%clk 0:00:37]} 48. bxa4 {[%clk 0:00:34]}  Rxa4 {[%clk 0:00:38]} 49. Kc2 {[%clk 0:00:34]}  Ra1 {[%clk 0:00:37]} 50. Bb2 {[%clk 0:00:31]}  Ra8 {[%clk 0:00:36]} 51. Kb3 {[%clk 0:00:31]}  Rb8 {[%clk 0:00:37]} 52. Bc1 {[%clk 0:00:30]}  Be7 {[%clk 0:00:36]} 53. Bxh6 {[%clk 0:00:00]}  Bf6 {[%clk 0:00:28]} 0-1


[Site "https://www.chess.com"]